fUST/lending_fUST_20250531
["ID","MTS","AMOUNT","RATE_DAILY","PERIOD"]
[363327672,1748676577800,-430.0,0.00016712,2]
[363327673,1748676577847,-522.02060256,0.00016712,2]
[363327674,1748676577893,-430.0,0.00016712,2]
[363327675,1748676577942,-430.0,0.00016712,2]
[363327676,1748676577990,-430.0,0.00016712,2]
[363327677,1748676578036,-430.0,0.00016712,2]
[363327678,1748676578086,-430.0,0.00016712,2]
[363327679,1748676578133,-377.59753775,0.00016712,2]
[363327680,1748676578179,-430.0,0.00016712,2]
[363327681,1748676578224,-430.0,0.00016712,2]
[363327682,1748676578270,-430.0,0.00016712,2]
[363327683,1748676578318,-430.0,0.00016712,2]
[363327684,1748676578365,-430.0,0.00016712,2]
[363327685,1748676578409,-430.0,0.00016712,2]
[363327686,1748676578456,-431.76793635,0.00016712,2]
[363327687,1748676578505,-259.47891798,0.00016712,2]
[363327688,1748676578555,-430.0,0.00016712,2]
[363327689,1748676578603,-430.0,0.00016712,2]
[363327690,1748676578651,-430.0,0.00016712,2]
[363327691,1748676578698,-430.0,0.00016712,2]
[363327692,1748676578745,-423.0,0.00016712,2]
[363327693,1748676578795,-430.0,0.00016712,2]
[363327694,1748676578843,-430.0,0.00016712,2]
[363327695,1748676578890,-430.0,0.00016712,2]
[363327696,1748676578937,-430.0,0.00016712,2]
[363327697,1748676578986,-430.0,0.00016712,2]
[363327698,1748676579034,-439.10524416,0.00016712,2]
[363327699,1748676579084,-430.0,0.00016712,2]
[363327700,1748676579133,-437.76113185,0.00016712,2]
[363327701,1748676579180,-430.0,0.00016712,2]
[363327702,1748676579227,-255.73773825,0.00016712,2]
[363327703,1748676579279,-430.0,0.00016712,2]
[363327704,1748676579326,-430.0,0.00016712,2]
[363327705,1748676579375,-430.0,0.00016712,2]
[363327706,1748676579423,-430.0,0.00016712,2]
[363327707,1748676579471,-430.0,0.00016712,2]
[363327708,1748676579520,-552.7484333,0.00016712,2]
[363327709,1748676579567,-430.0,0.00016712,2]
[363327710,1748676579615,-260.5,0.00016712,2]
[363327711,1748676579662,-462.80588903,0.00016712,2]
[363327712,1748676579710,-430.0,0.00016712,2]
[363327713,1748676579760,-430.0,0.00016712,2]
[363327714,1748676579805,-430.0,0.00016712,2]
[363327715,1748676579851,-430.0,0.00016712,2]
[363327716,1748676579901,-1118.93,0.00016712,2]
[363327717,1748676579949,-430.0,0.00016712,2]
[363327718,1748676579999,-430.0,0.00016712,2]
[363327719,1748676580049,-430.0,0.00016712,2]
[363327720,1748676580097,-430.0,0.00016712,2]
[363327721,1748676580146,-575.05,0.00016712,2]
[363327722,1748676580198,-430.0,0.00016712,2]
[363327723,1748676580246,-430.0,0.00016712,2]
[363327724,1748676580297,-451.53644999,0.00016712,2]
[363327725,1748676580347,-430.0,0.00016712,2]
[363327726,1748676580394,-430.0,0.00016712,2]
[363327727,1748676580443,-430.0,0.00016712,2]
[363327728,1748676580491,-430.0,0.00016712,2]
[363327729,1748676580538,-430.0,0.00016712,2]
[363327730,1748676580586,-431.82125051,0.00016712,2]
[363327731,1748676580634,-430.0,0.00016712,2]
[363327732,1748676580683,-1495.71,0.00016712,2]
[363327733,1748676580732,-430.0,0.00016712,2]
[363327734,1748676580781,-430.0,0.00016712,2]
[363327735,1748676580828,-430.0,0.00016712,2]
[363327736,1748676580878,-430.0,0.00016712,2]
[363327737,1748676580928,-618.07,0.00016712,2]
[363327738,1748676580978,-699.2,0.00016712,2]
[363327739,1748676581032,-430.0,0.00016712,2]
[363327740,1748676581085,-386.64023349,0.00016712,2]
[363327741,1748676581133,-430.0,0.00016712,2]
[363327742,1748676581184,-1237.53,0.00016712,2]
[363327743,1748676581231,-430.0,0.00016712,2]
[363327744,1748676581278,-1471.72,0.00016712,2]
[363327745,1748676581326,-349.73989259,0.00016712,2]
[363327746,1748676581374,-349.28049335,0.00016712,2]
[363327747,1748676581421,-430.0,0.00016712,2]
[363327748,1748676581470,-1692.96,0.00016712,2]
[363327749,1748676581516,-430.0,0.00016712,2]
[363327750,1748676581564,-430.0,0.00016712,2]
[363327751,1748676581610,-430.0,0.00016712,2]
[363327752,1748676581654,-350.31654117,0.00016712,2]
[363327753,1748676581701,-430.0,0.00016712,2]
[363327754,1748676581744,-430.0,0.00016712,2]
[363327755,1748676581788,-430.0,0.00016712,2]
[363327756,1748676581834,-1014.98,0.00016712,2]
[363327757,1748676581877,-430.0,0.00016712,2]
[363327758,1748676581925,-430.0,0.00016712,2]
[363327759,1748676581972,-430.0,0.00016712,2]
[363327760,1748676582016,-430.0,0.00016712,2]
[363327761,1748676582062,-450.0,0.00016712,2]
[363327762,1748676582107,-430.0,0.00016712,2]
[363327763,1748676582155,-430.0,0.00016712,2]
[363327764,1748676582206,-602.09,0.00016712,2]
[363327765,1748676582254,-1240.81,0.00016712,2]
[363327766,1748676582299,-430.0,0.00016712,2]
[363327767,1748676582346,-430.0,0.00016712,2]
[363327768,1748676582530,-430.0,0.00016712,2]
[363327769,1748676582577,-385.90702769,0.00016712,2]
[363327770,1748676582621,-4949.7,0.00016712,2]
[363327771,1748676582665,-430.0,0.00016712,2]
[363327772,1748676582710,-456.21,0.00016712,2]
[363327773,1748676582752,-430.0,0.00016712,2]
[363327774,1748676582797,-430.0,0.00016712,2]
[363327775,1748676582842,-430.0,0.00016712,2]
[363327776,1748676582886,-430.0,0.00016712,2]
[363327777,1748676582934,-430.0,0.00016712,2]
[363327778,1748676582980,-430.0,0.00016712,2]
[363327779,1748676583025,-430.0,0.00016712,2]
[363327780,1748676583074,-430.0,0.00016712,2]
[363327781,1748676583129,-889.6,0.00016712,2]
[363327782,1748676583180,-613.13,0.00016712,2]
[363327783,1748676583229,-430.0,0.00016712,2]
[363327784,1748676583277,-430.0,0.00016712,2]
[363327785,1748676583327,-548.65,0.00016712,2]
[363327786,1748676583378,-430.0,0.00016712,2]
[363327787,1748676583431,-430.0,0.00016712,2]
[363327788,1748676583484,-430.0,0.00016712,2]
[363327789,1748676583536,-430.0,0.00016712,2]
[363327790,1748676583585,-430.0,0.00016712,2]
[363327791,1748676583636,-430.0,0.00016712,2]
[363327792,1748676583684,-501.76991613,0.00016752,2]
[363327793,1748676583733,-500.0,0.00016752,2]
[363327794,1748676583781,-500.0,0.00016764,2]
[363327795,1748676583829,-500.89951352,0.00016764,2]
[363327796,1748676583876,-152.0,0.00016784,2]
[363327797,1748676583923,-500.0,0.00016786,2]
[363327798,1748676583968,-500.0,0.00016786,2]
[363327799,1748676584023,-1963.34401369,0.000168,2]
[363327800,1748676584078,-1963.34401357,0.000168,2]
[363327801,1748676584136,-1963.34401357,0.000168,2]
[363327802,1748676584188,-153.67081978,0.000168,2]
[363327803,1748676584244,-1963.34401357,0.00016831,2]
[363327804,1748676584294,-500.59548203,0.00016839,2]
[363327805,1748676584343,-500.0,0.00016839,2]
[363327806,1748676584390,-501.63989649,0.00016839,2]
[363327807,1748676584437,-430.0,0.00016986,2]
[363327808,1748676584486,-430.0,0.00016986,2]
[363327809,1748676584531,-430.0,0.00016986,2]
[363327810,1748676584576,-430.0,0.00016986,2]
[363327811,1748676584622,-430.0,0.00016986,2]
[363327812,1748676584667,-521.11051851,0.00016986,2]
[363327813,1748676584717,-430.0,0.00016986,2]
[363327814,1748676584763,-433.80160203,0.00016986,2]
[363327815,1748676584812,-430.0,0.00016986,2]
[363327816,1748676584861,-470.0,0.00016986,2]
[363327817,1748676584908,-430.0,0.00016986,2]
[363327818,1748676584957,-430.0,0.00016986,2]
[363327819,1748676585005,-476.21018739,0.00016986,2]
[363327820,1748676585055,-430.0,0.00016986,2]
[363327821,1748676585105,-430.0,0.00016986,2]
[363327822,1748676585157,-430.0,0.00016986,2]
[363327823,1748676585207,-430.0,0.00016986,2]
[363327824,1748676585255,-430.0,0.00016986,2]
[363327825,1748676585304,-430.0,0.00016986,2]
[363327826,1748676585352,-430.0,0.00016986,2]
[363327827,1748676585403,-1118.93,0.00016986,2]
[363327828,1748676585454,-430.0,0.00016986,2]
[363327829,1748676585505,-430.0,0.00016986,2]
[363327830,1748676585557,-300.80297109,0.00016986,2]
[363327831,1748676585606,-575.05,0.00016986,2]
[363327832,1748676585656,-435.91555211,0.00016986,2]
[363327833,1748676585705,-430.0,0.00016986,2]
[363327834,1748676585754,-430.0,0.00016986,2]
[363327835,1748676585803,-430.0,0.00016986,2]
[363327836,1748676585858,-163.57747351,0.00016986,2]
[363327837,1748676585906,-430.0,0.00016986,2]
[363327838,1748676585953,-430.0,0.00016986,2]
[363327839,1748676586002,-1495.71,0.00016986,2]
[363327840,1748676586061,-430.0,0.00016986,2]
[363327841,1748676586112,-430.0,0.00016986,2]
[363327842,1748676586163,-430.0,0.00016986,2]
[363327843,1748676586212,-618.07,0.00016986,2]
[363327844,1748676586260,-699.2,0.00016986,2]
[363327845,1748676586308,-430.0,0.00016986,2]
[363327846,1748676586354,-1237.53,0.00016986,2]
[363327847,1748676586404,-430.0,0.00016986,2]
[363327848,1748676586455,-1471.72,0.00016986,2]
[363327849,1748676586506,-430.0,0.00016986,2]
[363327850,1748676586559,-1692.96,0.00016986,2]
[363327851,1748676586610,-430.0,0.00016986,2]
[363327852,1748676586660,-430.0,0.00016986,2]
[363327853,1748676586708,-161.31310008,0.00016986,2]
[363327854,1748676586755,-430.0,0.00016986,2]
[363327855,1748676586803,-1014.98,0.00016986,2]
[363327856,1748676586848,-526.3,0.00016986,2]
[363327857,1748676586895,-430.0,0.00016986,2]
[363327858,1748676586944,-602.09,0.00016986,2]
[363327859,1748676586991,-1240.81,0.00016986,2]
[363327860,1748676587038,-430.0,0.00016986,2]
[363327861,1748676587088,-430.0,0.00016986,2]
[363327862,1748676587135,-305.48714229,0.00016986,2]
[363327867,1748676604726,182.76487509,0.0001601,2]
[363327883,1748676632146,-100.37900721,0.0001601,2]
[363327884,1748676632156,-430.0,0.00016438,2]
[363327885,1748676632169,-430.0,0.00016438,2]
[363327886,1748676632179,-430.0,0.00016438,2]
[363327887,1748676632189,-430.0,0.00016438,2]
[363327888,1748676632208,-430.0,0.00016438,2]
[363327889,1748676632219,-430.0,0.00016438,2]
[363327890,1748676632229,-722.57,0.00016438,2]
[363327891,1748676632240,-483.17,0.00016438,2]
[363327892,1748676632251,-430.0,0.00016438,2]
[363327893,1748676632262,-430.0,0.00016438,2]
[363327894,1748676632272,-1150.08,0.00016438,2]
[363327895,1748676632282,-1528.78,0.00016438,2]
[363327896,1748676632292,-430.0,0.00016712,2]
[363327897,1748676632302,-430.0,0.00016712,2]
[363327898,1748676632312,-430.0,0.00016712,2]
[363327899,1748676632323,-454.78825853,0.00016712,2]
[363327900,1748676632332,-474.52,0.00016712,2]
[363327901,1748676632343,-722.57,0.00016712,2]
[363327902,1748676632353,-430.0,0.00016712,2]
[363327903,1748676632363,-1150.08,0.00016712,2]
[363327904,1748676632373,-1528.78,0.00016712,2]
[363327905,1748676632383,-203.91913958,0.00016883,2]
[363327906,1748676632393,-300.0,0.00016985,2]
[363327907,1748676632404,-124.51285771,0.00016986,2]
[363327908,1748676632413,-4949.7,0.00016986,2]
[363327909,1748676632423,-456.21,0.00016986,2]
[363327910,1748676632433,-576.33870026,0.00016986,2]
[363327911,1748676632443,-430.0,0.00016986,2]
[363327912,1748676632453,-430.0,0.00016986,2]
[363327913,1748676632465,-430.0,0.00016986,2]
[363327914,1748676632475,-430.0,0.00016986,2]
[363327915,1748676632485,-430.0,0.00016986,2]
[363327916,1748676632495,-889.6,0.00016986,2]
[363327917,1748676632504,-613.13,0.00016986,2]
[363327918,1748676632515,-430.0,0.00016986,2]
[363327919,1748676632693,-430.0,0.00016986,2]
[363327920,1748676632709,-548.65,0.00016986,2]
[363327921,1748676632719,-430.0,0.00016986,2]
[363327922,1748676632728,-430.0,0.00016986,2]
[363327923,1748676632738,-430.0,0.00016986,2]
[363327924,1748676632748,-430.0,0.00016986,2]
[363327925,1748676632759,-430.0,0.00016986,2]
[363327926,1748676632769,-430.0,0.00016986,2]
[363327927,1748676632779,-480.34,0.00016986,2]
[363327928,1748676632789,-212.78893972,0.00016986,2]
[363327929,1748676632799,-722.57,0.00016986,2]
[363327930,1748676632809,-430.0,0.00016986,2]
[363327931,1748676632818,-1150.08,0.00016986,2]
[363327932,1748676632828,-1528.78,0.00016986,2]
[363327933,1748676632838,-53036.30466692,0.00017,2]
[363327934,1748676632881,-3236.55856541,0.00017,2]
[363327935,1748676632893,-12797.1784467,0.00017,2]
[363327956,1748676638158,-427.38381712,0.00016438,2]
[363327960,1748676638182,-2.61618288,0.00016438,2]
[363327962,1748676638191,-430.0,0.00016438,2]
[363327963,1748676638201,-438.38,0.00016438,2]
[363327966,1748676638211,-430.0,0.00016438,2]
[363327968,1748676638222,-430.0,0.00016712,2]
[363327969,1748676638231,-438.38,0.00016712,2]
[363327971,1748676638241,-186.96184548,0.00016985,2]
[363327973,1748676638250,-346.19844143,0.00016985,2]
[363327976,1748676638260,-430.0,0.00016986,2]
[363327977,1748676638270,-438.38,0.00016986,2]
[363327980,1748676638279,-500.0,0.00016999,2]
[363327981,1748676638289,-604.48484939,0.00016999,2]
[363327985,1748676638299,-500.0,0.00016999,2]
[363327986,1748676638308,-500.0,0.00016999,2]
[363327988,1748676638317,-500.0,0.00016999,2]
[363327990,1748676638325,-512.01877949,0.00016999,2]
[363327992,1748676638334,-500.0,0.00016999,2]
[363327994,1748676638343,-500.0,0.00016999,2]
[363327996,1748676638351,-500.0,0.00016999,2]
[363327998,1748676638361,-500.0,0.00016999,2]
[363328000,1748676638370,-22537.87751956,0.00017,2]
[363328002,1748676638379,-1100.0,0.00017068,2]
[363328004,1748676638387,-1963.34401357,0.00017141,2]
[363328006,1748676638396,-304.76580013,0.00017244,2]
[363328008,1748676638405,-430.0,0.0001726,2]
[363328010,1748676638413,-315.40271961,0.0001726,2]
[363328012,1748676638422,-430.0,0.0001726,2]
[363328014,1748676638431,-430.0,0.0001726,2]
[363328016,1748676638440,-430.0,0.0001726,2]
[363328018,1748676638449,-430.0,0.0001726,2]
[363328020,1748676638458,-430.0,0.0001726,2]
[363328021,1748676638467,-430.0,0.0001726,2]
[363328022,1748676638476,-430.0,0.0001726,2]
[363328023,1748676638485,-465.82,0.0001726,2]
[363328024,1748676638495,-430.0,0.0001726,2]
[363328025,1748676638503,-618.07,0.0001726,2]
[363328026,1748676638517,-699.2,0.0001726,2]
[363328027,1748676638527,-1237.53,0.0001726,2]
[363328028,1748676638536,-430.0,0.0001726,2]
[363328029,1748676638545,-1471.72,0.0001726,2]
[363328030,1748676638556,-430.0,0.0001726,2]
[363328031,1748676638565,-1692.96,0.0001726,2]
[363328032,1748676638574,-430.0,0.0001726,2]
[363328033,1748676638584,-430.0,0.0001726,2]
[363328034,1748676638593,-430.0,0.0001726,2]
[363328035,1748676638602,-1014.98,0.0001726,2]
[363328036,1748676638611,-430.0,0.0001726,2]
[363328037,1748676638621,-602.09,0.0001726,2]
[363328038,1748676638630,-1240.81,0.0001726,2]
[363328039,1748676638640,-430.0,0.0001726,2]
[363328040,1748676638649,-430.0,0.0001726,2]
[363328041,1748676638658,-430.0,0.0001726,2]
[363328042,1748676638667,-4949.7,0.0001726,2]
[363328043,1748676638676,-456.21,0.0001726,2]
[363328044,1748676638685,-430.0,0.0001726,2]
[363328045,1748676638694,-430.0,0.0001726,2]
[363328046,1748676638703,-889.6,0.0001726,2]
[363328047,1748676638713,-613.13,0.0001726,2]
[363328048,1748676638722,-430.0,0.0001726,2]
[363328049,1748676638731,-430.0,0.0001726,2]
[363328050,1748676638741,-548.65,0.0001726,2]
[363328051,1748676638751,-430.0,0.0001726,2]
[363328052,1748676638762,-430.0,0.0001726,2]
[363328053,1748676638771,-430.0,0.0001726,2]
[363328054,1748676638782,-430.0,0.0001726,2]
[363328055,1748676638792,-430.0,0.0001726,2]
[363328056,1748676638803,-430.0,0.0001726,2]
[363328057,1748676638812,-722.57,0.0001726,2]
[363328058,1748676638822,-430.0,0.0001726,2]
[363328059,1748676638831,-1150.08,0.0001726,2]
[363328060,1748676638841,-1528.78,0.0001726,2]
[363328061,1748676638851,-430.0,0.0001726,2]
[363328062,1748676638860,-438.38,0.0001726,2]
[363328063,1748676638870,-500.0,0.00017334,2]
[363328064,1748676638880,-152.0,0.00017345,2]
[363328065,1748676638889,-1963.34401357,0.00017452,2]
[363328066,1748676638899,-430.0,0.00017534,2]
[363328067,1748676638908,-430.0,0.00017534,2]
[363328068,1748676638918,-486.48,0.00017534,2]
[363328069,1748676638928,-430.0,0.00017534,2]
[363328070,1748676638937,-430.0,0.00017534,2]
[363328071,1748676638947,-430.0,0.00017534,2]
[363328072,1748676638957,-430.0,0.00017534,2]
[363328073,1748676638966,-618.07,0.00017534,2]
[363328074,1748676638975,-699.2,0.00017534,2]
[363328075,1748676638984,-1237.53,0.00017534,2]
[363328076,1748676638994,-430.0,0.00017534,2]
[363328077,1748676639003,-1471.72,0.00017534,2]
[363328078,1748676639013,-430.0,0.00017534,2]
[363328079,1748676639022,-1692.96,0.00017534,2]
[363328080,1748676639032,-430.0,0.00017534,2]
[363328081,1748676639041,-430.0,0.00017534,2]
[363328082,1748676639052,-430.0,0.00017534,2]
[363328083,1748676639061,-1014.98,0.00017534,2]
[363328084,1748676639071,-430.0,0.00017534,2]
[363328085,1748676639079,-602.09,0.00017534,2]
[363328086,1748676639089,-1240.81,0.00017534,2]
[363328087,1748676639098,-430.0,0.00017534,2]
[363328088,1748676639107,-430.0,0.00017534,2]
[363328089,1748676639116,-430.0,0.00017534,2]
[363328090,1748676639125,-4949.7,0.00017534,2]
[363328091,1748676639135,-456.21,0.00017534,2]
[363328092,1748676639144,-430.0,0.00017534,2]
[363328093,1748676639153,-430.0,0.00017534,2]
[363328094,1748676639162,-889.6,0.00017534,2]
[363328095,1748676639171,-613.13,0.00017534,2]
[363328096,1748676639181,-430.0,0.00017534,2]
[363328097,1748676639190,-430.0,0.00017534,2]
[363328098,1748676639202,-548.65,0.00017534,2]
[363328099,1748676639211,-430.0,0.00017534,2]
[363328100,1748676639219,-430.0,0.00017534,2]
[363328101,1748676639228,-430.0,0.00017534,2]
[363328102,1748676639239,-430.0,0.00017534,2]
[363328103,1748676639248,-430.0,0.00017534,2]
[363328104,1748676639257,-430.0,0.00017534,2]
[363328105,1748676639266,-722.57,0.00017534,2]
[363328106,1748676639276,-430.0,0.00017534,2]
[363328107,1748676639285,-1150.08,0.00017534,2]
[363328108,1748676639295,-1528.78,0.00017534,2]
[363328109,1748676639305,-430.0,0.00017534,2]
[363328110,1748676639315,-438.38,0.00017534,2]
[363328111,1748676639323,-206.17626019,0.000176,2]
[363328112,1748676639333,-587.0,0.00017759,2]
[363328113,1748676639342,-1963.34401357,0.00017762,2]
[363328114,1748676639351,-544.62798816,0.00017793,2]
[363328115,1748676639360,-500.0,0.00017793,2]
[363328116,1748676639370,-430.0,0.00017808,2]
[363328117,1748676639379,-430.0,0.00017808,2]
[363328118,1748676639390,-430.0,0.00017808,2]
[363328119,1748676639399,-430.0,0.00017808,2]
[363328120,1748676639408,-430.0,0.00017808,2]
[363328121,1748676639417,-430.0,0.00017808,2]
[363328122,1748676639427,-618.07,0.00017808,2]
[363328123,1748676639436,-699.2,0.00017808,2]
[363328124,1748676639447,-1237.53,0.00017808,2]
[363328125,1748676639457,-430.0,0.00017808,2]
[363328126,1748676639466,-1471.72,0.00017808,2]
[363328127,1748676639476,-1692.96,0.00017808,2]
[363328128,1748676639486,-430.0,0.00017808,2]
[363328129,1748676639495,-430.0,0.00017808,2]
[363328130,1748676639504,-214.15,0.00017808,2]
[363328131,1748676639513,-1014.98,0.00017808,2]
[363328132,1748676639523,-602.09,0.00017808,2]
[363328133,1748676639532,-1240.81,0.00017808,2]
[363328134,1748676639541,-430.0,0.00017808,2]
[363328135,1748676639551,-430.0,0.00017808,2]
[363328136,1748676639560,-430.0,0.00017808,2]
[363328137,1748676639570,-4949.7,0.00017808,2]
[363328138,1748676639579,-456.21,0.00017808,2]
[363328139,1748676639589,-389.89625736,0.00017808,2]
[363328140,1748676639598,-889.6,0.00017808,2]
[363328141,1748676639607,-613.13,0.00017808,2]
[363328142,1748676639617,-430.0,0.00017808,2]
[363328143,1748676639626,-430.0,0.00017808,2]
[363328145,1748676639636,-548.65,0.00017808,2]
[363328147,1748676639645,-430.0,0.00017808,2]
[363328149,1748676639655,-430.0,0.00017808,2]
[363328151,1748676639663,-430.0,0.00017808,2]
[363328152,1748676639673,-430.0,0.00017808,2]
[363328153,1748676639681,-722.57,0.00017808,2]
[363328154,1748676639691,-467.66,0.00017808,2]
[363328155,1748676639700,-1150.08,0.00017808,2]
[363328156,1748676639709,-1528.78,0.00017808,2]
[363328157,1748676639718,-438.38,0.00017808,2]
[363328158,1748676639727,-595.32326124,0.00017878,2]
[363328159,1748676639736,-1000.0,0.00017901,7]
[363328160,1748676639745,-1000.0,0.00017901,7]
[363328161,1748676639754,-1000.0,0.00017901,2]
[363328162,1748676639763,-1963.34401357,0.00018072,2]
[363328163,1748676639773,-160.0,0.00018081,2]
[363328164,1748676639783,-497.34,0.00018082,2]
[363328165,1748676639792,-430.0,0.00018082,2]
[363328166,1748676639802,-430.0,0.00018082,2]
[363328167,1748676639812,-430.0,0.00018082,2]
[363328168,1748676639821,-430.0,0.00018082,2]
[363328169,1748676639830,-430.0,0.00018082,2]
[363328170,1748676639839,-618.07,0.00018082,2]
[363328171,1748676639848,-699.2,0.00018082,2]
[363328172,1748676639858,-1237.53,0.00018082,2]
[363328173,1748676639867,-430.0,0.00018082,2]
[363328174,1748676639877,-1471.72,0.00018082,2]
[363328175,1748676639886,-1692.96,0.00018082,2]
[363328176,1748676639895,-430.0,0.00018082,2]
[363328177,1748676639905,-430.0,0.00018082,2]
[363328178,1748676639915,-1014.98,0.00018082,2]
[363328179,1748676639924,-1240.81,0.00018082,2]
[363328180,1748676639933,-430.0,0.00018082,2]
[363328181,1748676639943,-602.09,0.00018082,2]
[363328182,1748676639952,-430.0,0.00018082,2]
[363328183,1748676639961,-430.0,0.00018082,2]
[363328184,1748676639970,-4949.7,0.00018082,2]
[363328185,1748676639979,-456.21,0.00018082,2]
[363328186,1748676639988,-889.6,0.00018082,2]
[363328187,1748676639997,-613.13,0.00018082,2]
[363328188,1748676640007,-430.0,0.00018082,2]
[363328189,1748676640016,-430.0,0.00018082,2]
[363328190,1748676640025,-548.65,0.00018082,2]
[363328191,1748676640034,-213.57163887,0.00018082,2]
[363328192,1748676640044,-430.0,0.00018082,2]
[363328193,1748676640054,-430.0,0.00018082,2]
[363328194,1748676640063,-430.0,0.00018082,2]
[363328195,1748676640073,-722.57,0.00018082,2]
[363328196,1748676640082,-1150.08,0.00018082,2]
[363328197,1748676640091,-1528.78,0.00018082,2]
[363328198,1748676640100,-438.38,0.00018082,2]
[363328199,1748676640109,-329.8368446,0.00018082,2]
[363328200,1748676640118,-151.0,0.00018083,2]
[363328201,1748676640127,-376.864955,0.00018083,2]
[363328203,1748676640136,-376.864955,0.00018083,2]
[363328204,1748676640288,-304.76580013,0.0001815,2]
[363328205,1748676640297,-1100.0,0.00018164,2]
[363328206,1748676640306,-430.0,0.00018356,2]
[363328207,1748676640315,-430.0,0.00018356,2]
[363328208,1748676640327,-430.0,0.00018356,2]
[363328209,1748676640337,-430.0,0.00018356,2]
[363328210,1748676640346,-430.0,0.00018356,2]
[363328211,1748676640355,-618.07,0.00018356,2]
[363328212,1748676640364,-699.2,0.00018356,2]
[363328213,1748676640373,-1237.53,0.00018356,2]
[363328214,1748676640382,-430.0,0.00018356,2]
[363328215,1748676640392,-1471.72,0.00018356,2]
[363328216,1748676640401,-1692.96,0.00018356,2]
[363328217,1748676640411,-430.0,0.00018356,2]
[363328219,1748676640421,-430.0,0.00018356,2]
[363328221,1748676640430,-1014.98,0.00018356,2]
[363328222,1748676640439,-1240.81,0.00018356,2]
[363328224,1748676640448,-602.09,0.00018356,2]
[363328225,1748676640457,-430.0,0.00018356,2]
[363328226,1748676640467,-430.0,0.00018356,2]
[363328227,1748676640476,-4949.7,0.00018356,2]
[363328228,1748676640485,-456.21,0.00018356,2]
[363328229,1748676640495,-889.6,0.00018356,2]
[363328230,1748676640504,-613.13,0.00018356,2]
[363328231,1748676640514,-430.0,0.00018356,2]
[363328232,1748676640523,-548.65,0.00018356,2]
[363328233,1748676640532,-533.49,0.00018356,2]
[363328234,1748676640542,-430.0,0.00018356,2]
[363328235,1748676640553,-430.0,0.00018356,2]
[363328236,1748676640562,-722.57,0.00018356,2]
[363328237,1748676640571,-1150.08,0.00018356,2]
[363328238,1748676640580,-1528.78,0.00018356,2]
[363328239,1748676640589,-296.662294,0.00018357,2]
[363328240,1748676640600,-296.662294,0.00018357,2]
[363328241,1748676640609,-151.0,0.00018357,2]
[363328242,1748676640618,-407.978989,0.00018357,2]
[363328243,1748676640627,-407.978989,0.00018357,2]
[363328244,1748676640636,-156.456511,0.00018357,2]
[363328245,1748676640645,-156.456511,0.00018357,2]
[363328246,1748676640654,-1963.34401357,0.00018383,2]
[363328247,1748676640664,-154409.56949812,0.00018399,2]
[363328248,1748676640673,-420.0,0.00018552,2]
[363328249,1748676640682,-430.0,0.0001863,2]
[363328250,1748676640691,-430.0,0.0001863,2]
[363328251,1748676640701,-430.0,0.0001863,2]